bitfinex/quotes_SOLUSD_20250403
["timestamp","ask_amount","ask_price","bid_price","bid_amount"]
[1743711827097,16.94903439,115.84,115.79,25.58483439]
[1743711827301,16.94903439,115.82,115.79,8.6358]
[1743711827504,16.94903439,115.82,115.78,27.10893439]
[1743711828992,25.58293439,115.83,115.78,27.10893439]
[1743711829388,16.94903439,115.82,115.78,27.10893439]
[1743711830685,25.58313439,115.82,115.78,27.10893439]
[1743711831109,25.58313439,115.82,115.78,10.1599]
[1743711832308,25.58313439,115.82,115.78,27.10893439]
[1743711833409,25.58313439,115.82,115.78,10.1599]
[1743711833709,25.58313439,115.82,115.78,27.10893439]
[1743711834707,25.58313439,115.82,115.78,10.1599]
[1743711836205,157.77696157,115.85,115.79,16.94903439]
[1743711836401,16.94903439,115.84,115.8,16.94903439]
[1743711836709,16.94903439,115.85,115.8,16.94903439]
[1743711837085,16.94903439,115.84,115.8,16.94903439]
[1743711837386,16.94903439,115.84,115.79,16.94903439]
[1743711837797,16.94903439,115.84,115.8,8.6355]
[1743711841889,16.94903439,115.83,115.78,26.15233439]
[1743711842084,16.94903439,115.82,115.78,9.2033]
[1743711842312,16.94903439,115.81,115.78,1.5233]
[1743711842912,16.94903439,115.82,115.78,1.5233]
[1743711843219,16.94903439,115.82,115.78,10.16]
[1743711843433,16.94903439,115.82,115.78,27.10903439]
[1743711845910,27.42401043,115.85,115.78,48.70163439]
[1743711846112,16.94903439,115.83,115.78,48.70163439]
[1743711847135,27.42401043,115.85,115.78,48.70163439]
[1743711847429,16.94903439,115.85,115.8,25.58453439]
[1743711848387,16.94903439,115.86,115.81,16.94903439]
[1743711848891,16.94903439,115.86,115.82,16.94903439]
[1743711849293,16.94903439,115.86,115.83,8.6333]
[1743711849486,18.79181043,115.89,115.83,8.6333]
[1743711849695,16.94903439,115.88,115.83,34.79593439]
[1743711850607,16.94903439,115.88,115.85,8.6318]
[1743711851622,8.6284,115.9,115.85,8.6318]
[1743711851827,16.94903439,115.89,115.85,8.6318]
[1743711852018,16.94903439,115.88,115.85,8.6318]
[1743711852406,16.94903439,115.87,115.84,8.6322]
[1743711853825,16.94903439,115.87,115.83,9.2136]
[1743711853826,16.94903439,115.86,115.83,17.8465]
[1743711854131,16.94903439,115.86,115.83,7.68]
[1743711854314,16.94903439,115.86,115.82,8.6335]
[1743711856831,16.94903439,115.86,115.82,30.2187]
[1743711857221,16.94903439,115.86,115.82,8.6335]
[1743711858940,16.94903439,115.86,115.82,25.58253439]
[1743711859233,16.94903439,115.86,115.82,47.16773439]
[1743711860910,16.94903439,115.87,115.82,47.16773439]
[1743711861130,16.94903439,115.88,115.83,17.23335753]
[1743711862821,8.629,115.89,115.84,16.94903439]
[1743711862822,16.94903439,115.89,115.84,16.94903439]
[1743711863019,16.94903439,115.89,115.85,8.6318]
[1743711865540,16.94903439,115.88,115.85,8.6318]
[1743711867043,16.94903439,115.88,115.84,30.2138]
[1743711867739,16.94903439,115.9,115.85,17.23335753]
[1743711868254,16.94903439,115.89,115.85,17.23335753]
[1743711868540,16.94903439,115.86,115.82,0.14216157]
[1743711868742,16.94903439,115.85,115.82,8.634]
[1743711877657,8.6312,115.86,115.82,8.634]
[1743711877851,16.94903439,115.86,115.82,8.634]
[1743711878155,16.94903439,115.86,115.82,25.58303439]
[1743711878326,16.94903439,115.86,115.82,8.634]
[1743711884055,16.94903439,115.87,115.83,0.28432314]
[1743711885570,16.94903439,115.9,115.86,8.6311]
[1743711885944,1.5011,115.91,115.86,25.58013439]
[1743711886150,16.94903439,115.91,115.86,25.58013439]
[1743711886457,16.94903439,115.9,115.86,25.58013439]
[1743711886846,16.94903439,115.9,115.86,8.6311]
[1743711887342,16.94903439,115.9,115.86,30.2088]
[1743711888034,16.94903439,115.9,115.86,8.6311]
[1743711889063,16.94903439,115.89,115.86,8.6311]
[1743711896881,16.94903439,115.87,115.84,8.6322]
[1743711897271,30.2061,115.9,115.84,8.6322]
[1743711897462,16.94903439,115.88,115.84,8.6322]
[1743711898277,16.94903439,115.88,115.84,21.5814]
[1743711899075,25.57863439,115.88,115.83,25.58233439]
[1743711899254,16.94903439,115.87,115.83,25.58233439]
[1743711899453,16.94903439,115.87,115.83,8.6333]
[1743711899655,16.94903439,115.86,115.83,8.6333]
[1743711903656,16.94903439,115.87,115.83,8.6333]
[1743711904062,16.94903439,115.86,115.83,8.6333]
[1743711904381,16.94903439,115.85,115.83,8.6333]
[1743711904763,16.94903439,115.85,115.81,30.50522314]
[1743711905689,16.94903439,115.82,115.78,6.5721]
[1743711905983,16.94903439,115.8,115.77,30.2316]
[1743711906163,16.94903439,115.81,115.77,30.2316]
[1743711906494,16.94903439,115.82,115.78,16.94903439]
[1743711906658,16.94903439,115.83,115.78,16.94903439]
[1743711906977,16.94903439,115.83,115.79,8.6363]
[1743711907976,16.94903439,115.81,115.79,8.6363]
[1743711908177,16.94903439,115.81,115.78,8.6367]
[1743711908380,0.14216157,115.85,115.78,47.17833439]
[1743711908671,16.94903439,115.83,115.79,16.94903439]
[1743711908868,16.94903439,115.83,115.8,8.6355]
[1743711909784,16.94903439,115.82,115.79,8.6359]
[1743711910885,16.94903439,115.82,115.78,8.92132314]
[1743711911063,16.94903439,115.81,115.78,8.637]
[1743711912660,16.94903439,115.8,115.78,8.637]
[1743711912983,16.94903439,115.81,115.78,8.637]
[1743711913689,20.0,115.84,115.78,25.58603439]
[1743711913862,16.94903439,115.83,115.78,25.58603439]
[1743711914063,16.94903439,115.83,115.78,47.17863439]
[1743711914267,16.94903439,115.82,115.78,8.637]
[1743711914467,16.94903439,115.81,115.78,8.637]
[1743711915767,16.94903439,115.81,115.77,8.6378]
[1743711918200,16.94903439,115.8,115.77,8.6378]
[1743711918563,28.6344,115.82,115.77,8.6378]
[1743711918564,16.94903439,115.81,115.77,8.6378]
[1743711919064,16.94903439,115.81,115.77,25.58683439]
[1743711919264,16.94903439,115.81,115.77,47.18133439]
[1743711920903,16.94903439,115.81,115.77,30.2323]
[1743711921288,16.94903439,115.8,115.77,30.2323]
[1743711921684,16.94903439,115.8,115.77,8.6378]
[1743711925604,16.94903439,115.8,115.77,30.2323]
[1743711925769,8.6321,115.85,115.78,17.23335753]
[1743711925973,16.94903439,115.84,115.79,16.94903439]
[1743711926174,16.94903439,115.85,115.8,16.94903439]
[1743711926405,16.94903439,115.84,115.81,8.6348]
[1743711928089,16.94903439,115.83,115.81,8.6348]
[1743711929098,16.94903439,115.83,115.8,8.6355]
[1743711929977,16.94903439,115.82,115.8,8.6355]
[1743711931785,16.94903439,115.83,115.8,8.6355]
[1743711932097,16.94903439,115.84,115.8,8.6355]
[1743711936100,16.94903439,115.81,115.8,8.6355]
[1743711937385,16.94903439,115.81,115.78,8.92132314]
[1743711937578,16.94903439,115.8,115.78,8.637]
[1743711937774,16.94903439,115.79,115.77,8.6378]
[1743711937981,16.94903439,115.78,115.77,8.6378]
[1743711938908,16.94903439,115.78,115.76,8.6385]
[1743711939494,16.94903439,115.79,115.76,8.6385]
[1743711943808,16.94903439,115.77,115.74,8.64]
[1743711944012,16.94903439,115.76,115.74,8.64]
[1743711944511,16.94903439,115.77,115.74,8.64]
[1743711947689,8.6372,115.78,115.74,8.64]
[1743711947690,16.94903439,115.76,115.74,8.64]
[1743711948717,16.94903439,115.77,115.74,8.64]
[1743711949092,16.94903439,115.77,115.73,25.58983439]
[1743711950219,16.94903439,115.77,115.73,47.19183439]
[1743711951622,16.94903439,115.77,115.73,30.2428]
[1743711954820,16.94903439,115.79,115.74,16.94903439]
[1743711956017,16.94903439,115.78,115.73,30.2428]
[1743711956317,16.94903439,115.75,115.73,8.6408]
[1743711957201,16.94903439,115.75,115.71,30.2469]
[1743711960022,16.94903439,115.74,115.71,8.6422]
[1743711961329,16.94903439,115.75,115.71,47.19693439]
[1743711962731,17.09119596,115.74,115.71,8.6422]
[1743711962937,16.94903439,115.72,115.66,342.01093439]
[1743711963233,16.94903439,115.7,115.67,30.2576]
[1743711963628,16.94903439,115.7,115.67,8.6452]
[1743711963834,16.94903439,115.71,115.67,8.6452]
[1743711964407,16.94903439,115.71,115.67,25.59423439]
[1743711964615,16.94903439,115.74,115.7,16.94903439]
[1743711964841,16.94903439,115.74,115.69,24.60903439]
[1743711965016,16.94903439,115.73,115.69,7.66]
[1743711965219,16.94903439,115.74,115.69,24.60903439]
[1743711965531,16.94903439,115.74,115.7,16.94903439]
[1743711966207,16.94903439,115.74,115.71,8.6422]
[1743711966836,16.94903439,115.73,115.71,8.6422]
[1743711967004,16.94903439,115.73,115.7,8.6426]
[1743711967742,16.94903439,115.72,115.7,8.6426]
[1743711968436,16.94903439,115.73,115.7,8.6426]
[1743711969720,16.94903439,115.73,115.69,8.6437]
[1743711970339,16.94903439,115.73,115.69,30.2531]
[1743711970841,16.94903439,115.73,115.69,47.20213439]
[1743711971136,16.94903439,115.77,115.72,16.94903439]
[1743711971916,16.94903439,115.77,115.73,30.2428]
[1743711973148,16.94903439,115.76,115.73,8.6408]
[1743711973330,20.0,115.78,115.73,8.6408]
[1743711973331,16.94903439,115.75,115.73,8.6408]
[1743711973731,16.94903439,115.75,115.71,30.247]
[1743711974835,28.6375,115.78,115.71,47.19603439]
[1743711975016,16.94903439,115.76,115.71,47.19603439]
[1743711979445,16.94903439,115.75,115.71,8.6422]
[1743711979854,16.94903439,115.74,115.71,8.6422]
[1743711981443,25.58913439,115.74,115.7,8.6426]
[1743711981651,16.94903439,115.73,115.7,8.6426]
[1743711982529,16.94903439,115.73,115.69,30.2523]
[1743711983947,16.94903439,115.73,115.69,47.20133439]
[1743711984450,16.94903439,115.74,115.69,47.20133439]
[1743711984748,16.94903439,115.75,115.71,16.94903439]
[1743711984923,16.94903439,115.76,115.71,16.94903439]
[1743711985953,15.8092899,115.76,115.71,16.94903439]
[1743711986448,28.6375,115.78,115.72,16.94903439]
[1743711986757,16.94903439,115.76,115.72,8.6415]
[1743711988052,16.94903439,115.75,115.7,8.643]
[1743711988355,16.94903439,115.75,115.7,25.59203439]
[1743711991846,16.94903439,115.75,115.7,8.643]
[1743711992356,16.94903439,115.75,115.7,25.59203439]
[1743711993546,16.94903439,115.75,115.7,47.19963439]
[1743711997783,25.58833439,115.75,115.7,47.19963439]
[1743711997983,16.94903439,115.74,115.7,30.2506]
[1743711998549,16.94903439,115.75,115.7,47.19963439]
[1743711998957,25.58833439,115.75,115.7,47.19963439]
[1743711999280,25.58833439,115.75,115.7,30.2506]
[1743712000584,16.94903439,115.74,115.7,30.2506]
[1743712002870,16.94903439,115.74,115.7,8.643]
[1743712002871,16.94903439,115.73,115.7,8.643]
[1743712003176,8.6402,115.74,115.7,8.643]
[1743712003177,16.94903439,115.72,115.7,8.643]
[1743712003475,16.94903439,115.72,115.69,8.6437]
[1743712003677,16.94903439,115.71,115.69,8.6437]
[1743712004480,16.94903439,115.72,115.69,8.6437]
[1743712004781,16.94903439,115.72,115.68,8.6445]
[1743712007395,8.6409,115.73,115.68,8.6445]
[1743712007566,16.94903439,115.69,115.66,8.646]
[1743712007892,16.94903439,115.68,115.66,8.646]
[1743712008199,0.14216157,115.72,115.63,18.64964886]
[1743712008200,16.94903439,115.67,115.63,8.6482]
[1743712008354,16.94903439,115.66,115.63,8.6482]
[1743712008899,16.94903439,115.67,115.63,8.6482]
[1743712010493,16.94903439,115.67,115.63,25.59723439]
[1743712010987,16.94903439,115.68,115.64,16.94903439]
[1743712011171,16.94903439,115.69,115.64,16.94903439]
[1743712011791,1.5549,115.7,115.64,16.94903439]
[1743712012101,16.94903439,115.69,115.64,17.23335753]
[1743712012866,16.94903439,115.68,115.64,17.23335753]
[1743712013292,16.94903439,115.68,115.65,8.6467]
[1743712014186,16.94903439,115.67,115.65,8.6467]
[1743712015191,1.5549,115.7,115.62,9.45262314]
[1743712015192,16.94903439,115.68,115.64,47.21533439]
[1743712015679,16.94903439,115.69,115.64,47.21533439]
[1743712016298,16.94903439,115.68,115.64,21.6188]
[1743712018397,16.94903439,115.68,115.63,25.59723439]
[1743712018895,16.94903439,115.68,115.63,47.21783439]
[1743712020792,16.94903439,115.67,115.63,30.2688]
[1743712021198,16.94903439,115.67,115.63,8.6482]
[1743712021682,16.94903439,115.66,115.63,8.6482]
[1743712022493,16.94903439,115.67,115.63,8.6482]
[1743712024592,8.6454,115.67,115.63,8.6482]
[1743712024787,16.94903439,115.66,115.63,8.6482]
[1743712024985,16.94903439,115.66,115.62,8.6486]
[1743712029103,16.94903439,115.65,115.62,8.6486]
[1743712030304,0.14216157,115.62,115.57,21.6311]
[1743712030486,16.94903439,115.6,115.57,8.6527]
[1743712033412,16.94903439,115.59,115.57,8.6527]
[1743712033785,16.94903439,115.59,115.56,8.6534]
[1743712036402,16.94903439,115.59,115.55,8.6542]
[1743712037399,17.09119596,115.6,115.55,25.60323439]
[1743712037604,17.09119596,115.6,115.55,47.23883439]
[1743712038522,16.94903439,115.59,115.55,25.60323439]
[1743712038691,20.0,115.64,115.57,16.94903439]
[1743712039017,17.09119596,115.63,115.58,16.94903439]
[1743712040313,17.09119596,115.63,115.59,8.6512]
[1743712040515,16.94903439,115.62,115.59,8.6512]
[1743712041619,16.94903439,115.61,115.59,8.6512]
[1743712041829,16.94903439,115.61,115.58,8.652]
[1743712041990,0.14216157,115.6,115.56,16.94903439]
[1743712042190,16.94903439,115.59,115.55,38.58373439]
[1743712042417,16.94903439,115.59,115.56,8.6531]
[1743712042622,17.09119596,115.6,115.56,8.6531]
[1743712042791,16.94903439,115.6,115.56,47.23583439]
[1743712042991,16.94903439,115.6,115.56,30.2868]
[1743712043300,16.94903439,115.6,115.56,8.6531]
[1743712044902,16.94903439,115.6,115.56,47.23583439]
[1743712045728,16.94903439,115.61,115.56,47.23583439]
[1743712045900,17.09119596,115.61,115.56,47.23583439]
[1743712046096,16.94903439,115.6,115.56,8.6531]
[1743712047230,25.59953439,115.6,115.56,8.6531]
[1743712047398,17.09119596,115.58,115.53,18.52403439]
[1743712047725,16.94903439,115.54,115.5,8.658]
[1743712048231,16.94903439,115.53,115.5,8.658]
[1743712048635,16.94903439,115.54,115.5,8.658]
[1743712049429,25.60413439,115.54,115.5,8.658]
[1743712049730,0.14216157,115.53,115.49,10.2887]
[1743712049905,35.24044499,115.54,115.49,10.2887]
[1743712049906,26.58534499,115.52,115.49,8.6585]
[1743712050520,26.58534499,115.52,115.47,8.6602]
[1743712050709,0.14216157,115.52,115.47,8.6602]
[1743712050907,26.58534499,115.51,115.47,8.6602]
[1743712051533,26.58534499,115.51,115.46,26.58534499]
[1743712052417,26.58534499,115.51,115.47,26.58534499]
[1743712052721,0.14216157,115.52,115.47,26.58534499]
[1743712052905,26.58534499,115.51,115.47,26.58534499]
[1743712053106,26.58534499,115.51,115.46,26.58534499]
[1743712054032,26.58534499,115.5,115.47,8.6602]
[1743712055409,26.72750656,115.49,115.45,26.58534499]
[1743712055721,26.72750656,115.49,115.44,34.24534499]
[1743712056238,26.72750656,115.49,115.44,35.24784499]
[1743712056934,26.72750656,115.49,115.45,26.58534499]
[1743712057112,26.58534499,115.5,115.46,26.58534499]
[1743712057313,26.58534499,115.5,115.47,8.6602]
[1743712057827,26.72750656,115.51,115.47,8.6602]
[1743712058008,26.58534499,115.52,115.47,35.24554499]
[1743712058209,26.58534499,115.52,115.48,26.58534499]
[1743712058719,26.58534499,115.52,115.47,35.24554499]
[1743712058924,26.58534499,115.5,115.45,8.6617]
[1743712059236,26.58534499,115.5,115.45,35.24704499]
[1743712059607,26.72750656,115.49,115.45,35.24704499]
[1743712059833,26.72750656,115.49,115.45,8.6617]
[1743712060840,26.58534499,115.48,115.45,8.6617]
[1743712061311,35.24494499,115.48,115.44,8.6625]
[1743712061514,26.58534499,115.47,115.42,49.85414499]
[1743712061837,26.58534499,115.47,115.43,26.58534499]
[1743712062231,8.6596,115.48,115.42,23.2688]
[1743712062417,26.58534499,115.47,115.43,26.58534499]
[1743712062606,26.58534499,115.47,115.43,8.6629]
[1743712062812,35.24564499,115.47,115.43,8.6629]
[1743712063134,26.58534499,115.46,115.43,8.6629]
[1743712063818,35.24634499,115.46,115.42,35.24894499]
[1743712064329,26.58534499,115.44,115.41,8.6647]
[1743712064721,26.58534499,115.43,115.4,8.6652]
[1743712065241,26.72750656,115.44,115.4,8.6652]
[1743712065810,26.58534499,115.43,115.4,8.6652]
[1743712066237,26.58534499,115.41,115.36,30.3389]
[1743712066539,26.72750656,115.42,115.36,30.3389]
[1743712066740,26.58534499,115.42,115.38,26.58534499]
[1743712066933,26.72750656,115.44,115.39,26.58534499]
[1743712067328,20.0,115.43,115.36,30.3389]
[1743712067531,20.0,115.43,115.37,26.58534499]
[1743712067532,26.58534499,115.42,115.37,26.58534499]
[1743712067721,20.0,115.43,115.39,8.6662]
[1743712067722,46.58534499,115.43,115.39,8.6662]
[1743712068253,26.58534499,115.42,115.39,8.6662]
[1743712070456,0.14216157,115.41,115.39,8.6662]
[1743712071351,26.58534499,115.42,115.38,56.91984499]
[1743712071543,46.72750656,115.43,115.38,56.91984499]
[1743712071742,37.18789467,115.43,115.38,47.3802331]
[1743712072051,20.14216157,115.43,115.38,47.3802331]
[1743712072224,37.18789467,115.43,115.38,47.3802331]
[1743712072429,20.0,115.45,115.39,17.0457331]
[1743712072642,17.18789467,115.44,115.39,17.0457331]
[1743712073331,0.14216157,115.44,115.39,17.0457331]
[1743712073532,17.18789467,115.44,115.4,8.6655]
[1743712074044,17.0457331,115.41,115.4,8.6655]
[1743712074556,0.14216157,115.44,115.4,8.6655]
[1743712074765,17.0457331,115.45,115.4,25.7112331]
[1743712074963,25.7074331,115.45,115.4,47.3749331]
[1743712075256,17.18789467,115.44,115.4,8.6655]
[1743712079359,25.85049467,115.44,115.4,8.6655]
[1743712079561,17.18789467,115.44,115.4,8.6655]
[1743712081667,0.14216157,115.44,115.4,8.6655]
[1743712081849,17.18789467,115.44,115.4,8.6655]
[1743712083375,17.0457331,115.43,115.4,8.6655]
[1743712083871,17.0457331,115.42,115.4,8.6655]
[1743712084665,17.0457331,115.43,115.39,8.6662]
[1743712086065,17.0457331,115.42,115.38,8.6665]
[1743712086373,17.0457331,115.41,115.38,8.6665]
[1743712086875,17.18789467,115.4,115.37,8.6673]
[1743712088370,0.14216157,115.4,115.37,8.6673]
[1743712088581,37.0457331,115.41,115.37,25.7130331]
[1743712088874,17.0457331,115.41,115.37,8.6673]
[1743712089773,17.0457331,115.41,115.37,25.7130331]
[1743712091075,0.14216157,115.41,115.37,25.7130331]
[1743712093056,24.7257331,115.42,115.38,17.0457331]
[1743712094174,17.0457331,115.42,115.38,17.0457331]
[1743712094356,20.14216157,115.43,115.39,17.0457331]
[1743712094557,45.85119467,115.43,115.39,17.0457331]
[1743712094974,45.85119467,115.43,115.38,17.0457331]
[1743712095583,0.14216157,115.42,115.39,8.6662]
[1743712095875,25.85189467,115.42,115.38,8.667]
[1743712096465,17.18789467,115.42,115.38,8.667]
[1743712097061,0.14216157,115.42,115.38,25.7127331]
[1743712099696,8.80616157,115.42,115.38,25.7127331]
[1743712099879,25.85189467,115.42,115.38,8.667]
[1743712100988,17.0457331,115.41,115.38,8.667]
[1743712101191,17.0457331,115.41,115.36,23.0908331]
[1743712101192,17.0457331,115.39,115.35,40.3358331]
[1743712101488,17.0457331,115.38,115.33,45.1987331]
[1743712101672,17.0457331,115.37,115.34,8.67]
[1743712102593,17.0457331,115.37,115.33,32.1933331]
[1743712102893,17.18789467,115.38,115.33,25.7161331]
[1743712103301,17.0457331,115.37,115.33,25.7161331]
[1743712103585,17.0457331,115.37,115.32,1.5743]
[1743712103586,17.0457331,115.36,115.32,25.7166331]
[1743712103792,17.0457331,115.35,115.31,8.6719]
[1743712104177,17.0457331,115.33,115.27,35.17290927]
[1743712104492,0.14216157,115.35,115.3,17.0457331]
[1743712104695,17.18789467,115.35,115.31,8.6722]
[1743712105389,17.0457331,115.36,115.32,17.0457331]
[1743712105603,17.0457331,115.35,115.31,25.7179331]
[1743712105894,17.0457331,115.35,115.31,8.6722]
[1743712106084,17.0457331,115.32,115.27,8.6752]
[1743712106292,17.0457331,115.32,115.27,25.7209331]
[1743712106591,17.0457331,115.31,115.27,25.7209331]
[1743712106890,17.0457331,115.31,115.27,8.6752]
[1743712107069,17.0457331,115.31,115.27,25.7209331]
[1743712107266,0.14216157,115.3,115.27,8.6752]
[1743712108599,17.0457331,115.31,115.27,25.7209331]
[1743712108898,0.14216157,115.32,115.28,17.0457331]
[1743712109273,25.85949467,115.32,115.27,25.7209331]
[1743712109884,17.18789467,115.32,115.27,25.7209331]
[1743712110079,17.18789467,115.32,115.23,7.96432314]
[1743712110080,0.14216157,115.27,115.23,8.6782]
[1743712110291,0.14216157,115.23,115.2,17.0457331]
[1743712110482,17.18789467,115.23,115.19,8.6812]
[1743712110797,17.0457331,115.22,115.18,25.7273331]
[1743712110978,0.14216157,115.23,115.18,8.6816]
[1743712110979,17.18789467,115.23,115.18,8.6816]
[1743712111181,17.18789467,115.23,115.18,25.7273331]
[1743712111583,44.7257331,115.24,115.19,17.0457331]
[1743712111895,44.7257331,115.24,115.18,8.6816]
[1743712111896,17.18789467,115.25,115.2,17.0457331]
[1743712112276,17.18789467,115.25,115.21,17.0457331]
[1743712112586,17.18789467,115.25,115.19,0.28432314]
[1743712112789,17.18789467,115.25,115.2,25.7262331]
[1743712113179,25.86469467,115.25,115.2,25.7262331]
[1743712113697,35.54002763,115.25,115.2,35.40156606]
[1743712114199,26.86322763,115.25,115.2,35.40156606]
[1743712114400,16.3554,115.27,115.21,26.72106606]
[1743712114581,0.14216157,115.27,115.23,26.72106606]
[1743712114779,0.14216157,115.27,115.24,8.6775]
[1743712115084,55.39556606,115.28,115.24,8.6775]
[1743712115276,0.14216157,115.27,115.23,35.39896606]
[1743712115476,26.86322763,115.27,115.23,8.6779]
[1743712116106,0.14216157,115.27,115.23,35.39896606]
[1743712117701,0.14216157,115.27,115.22,8.679]
[1743712117884,0.14216157,115.27,115.23,26.72106606]
[1743712118201,8.81746157,115.27,115.23,26.72106606]
[1743712119379,35.53852763,115.27,115.23,8.678]
[1743712120209,0.14216157,115.2,115.16,26.72106606]
[1743712120416,0.14216157,115.22,115.18,26.72106606]
[1743712120623,8.16,115.2,115.19,26.72106606]
[1743712120900,8.16,115.22,115.19,26.72106606]
[1743712121105,8.30216157,115.24,115.21,26.72106606]
[1743712121285,0.14216157,115.25,115.22,26.72106606]
[1743712121490,8.30216157,115.26,115.22,26.72106606]
[1743712122310,35.02322763,115.26,115.21,26.72106606]
[1743712123387,35.39776606,115.25,115.2,35.40136606]
[1743712123594,0.14216157,115.24,115.2,26.72106606]
[1743712123790,0.14216157,115.24,115.2,35.40156606]
[1743712124000,0.14216157,115.24,115.21,26.72106606]
[1743712124391,0.14216157,115.25,115.22,26.72106606]
[1743712125284,0.14216157,115.25,115.21,26.72106606]
[1743712125484,8.81966157,115.25,115.2,8.6805]
[1743712125688,8.81966157,115.25,115.21,26.72106606]
[1743712126913,8.81966157,115.25,115.21,35.40076606]
[1743712127719,35.54072763,115.25,115.21,8.6797]
[1743712128011,8.6761,115.26,115.22,26.72106606]
[1743712128191,63.65882763,115.27,115.22,26.72106606]
[1743712128784,0.14216157,115.25,115.21,8.6797]
[1743712129005,26.72106606,115.25,115.21,8.6797]
[1743712130297,35.39786606,115.25,115.2,35.40116606]
[1743712130716,26.86322763,115.24,115.19,35.40206606]
[1743712131219,26.72106606,115.23,115.19,8.681]
[1743712131515,26.72106606,115.23,115.19,35.40206606]
[1743712131704,0.14216157,115.22,115.18,35.40276606]
[1743712131906,26.86322763,115.22,115.18,8.6817]
[1743712132417,0.14216157,115.22,115.18,35.40276606]
[1743712132598,26.72106606,115.21,115.17,8.6824]
[1743712133325,26.72106606,115.21,115.17,35.40346606]
[1743712133499,63.49976606,115.23,115.17,8.6824]
[1743712133701,63.49976606,115.23,115.18,26.72106606]
[1743712134220,35.40036606,115.22,115.17,35.40346606]
[1743712134716,28.1,115.23,115.18,26.72106606]
[1743712134886,28.1,115.23,115.19,26.72106606]
[1743712134887,8.1,115.23,115.19,26.72106606]
[1743712135316,34.82106606,115.23,115.18,26.72106606]
[1743712135527,26.72106606,115.22,115.18,26.72106606]
[1743712135701,17.10775571,115.22,115.18,17.10775571]
[1743712136018,33.88605571,115.23,115.18,17.10775571]
[1743712136216,17.10775571,115.22,115.19,8.6813]
[1743712136719,33.88605571,115.23,115.19,8.6813]
[1743712137309,26.0,115.25,115.21,17.10775571]
[1743712137500,17.10775571,115.26,115.21,17.10775571]
[1743712138510,17.10775571,115.25,115.22,8.679]
[1743712139699,26.71601405,115.25,115.22,8.679]
[1743712141119,26.71601405,115.24,115.2,8.6805]
[1743712141302,26.71601405,115.23,115.2,8.6805]
[1743712141817,26.71601405,115.23,115.19,8.6813]
[1743712143723,8.81986157,115.24,115.19,8.6813]
[1743712144019,26.71601405,115.23,115.19,35.39731405]
[1743712144392,26.71601405,115.23,115.19,8.6813]
[1743712144598,26.71601405,115.22,115.19,8.6813]
[1743712145014,26.71601405,115.23,115.19,8.6813]
[1743712148624,35.39421405,115.23,115.19,8.6813]
[1743712148829,26.71601405,115.23,115.19,8.6813]
[1743712150008,35.39431405,115.23,115.19,8.6813]
[1743712150737,26.71601405,115.23,115.19,8.6813]
[1743712152325,26.71601405,115.22,115.19,8.6813]
[1743712153419,26.71601405,115.2,115.16,8.6835]
[1743712153631,28.6794,115.22,115.16,8.6835]
[1743712153813,26.71601405,115.21,115.16,8.6835]
[1743712154138,26.71601405,115.21,115.16,35.39951405]
[1743712154739,55.39541405,115.22,115.17,26.71601405]
[1743712155223,55.39541405,115.22,115.17,8.6823]
[1743712155422,55.39541405,115.22,115.17,35.39831405]
[1743712158035,55.39541405,115.22,115.17,8.6823]
[1743712158219,55.39541405,115.22,115.16,30.3924]
[1743712158424,26.71601405,115.21,115.16,57.10841405]
[1743712158841,26.71601405,115.21,115.16,35.39951405]
[1743712159714,17.25462476,115.21,115.16,25.79596319]
[1743712160324,25.93482476,115.21,115.16,25.79596319]
[1743712160722,17.11246319,115.22,115.17,17.11246319]
[1743712160926,17.11246319,115.22,115.18,17.11246319]
[1743712161336,17.11246319,115.22,115.17,17.11246319]
[1743712161533,25.79156319,115.22,115.17,17.11246319]
[1743712162246,52.55591262,115.27,115.18,30.52926157]
[1743712162449,8.6745,115.28,115.22,17.11246319]
[1743712162747,17.11246319,115.26,115.21,17.11246319]
[1743712164336,17.11246319,115.26,115.22,8.679]
[1743712165750,17.11246319,115.26,115.22,25.79146319]
[1743712167043,45.78766319,115.27,115.22,25.79146319]
[1743712167547,17.11246319,115.26,115.22,25.79146319]
[1743712168949,25.78846319,115.26,115.22,25.79146319]
[1743712169149,25.78846319,115.26,115.21,21.6984]
[1743712169150,17.11246319,115.25,115.21,25.79196319]
[1743712169731,25.78846319,115.26,115.21,25.79196319]
[1743712170952,17.11246319,115.26,115.21,25.79196319]
[1743712172337,25.78866319,115.26,115.21,25.79196319]
[1743712173334,17.11246319,115.26,115.21,25.79196319]
[1743712176454,17.11246319,115.25,115.2,30.3809]
[1743712176765,17.11246319,115.25,115.21,17.11246319]